bitfinex-derivatives/quotes_BNBF0:USTF0_20250116
["timestamp","ask_amount","ask_price","bid_price","bid_amount"]
[1736988127204,3.07274545,708.57,707.49,0.2826895]
[1736988127405,3.07274545,708.56,707.49,0.2826895]
[1736988127608,3.07274545,708.55,707.49,1.4126895]
[1736988127809,3.07274545,708.54,707.49,1.4126895]
[1736988128104,1.03643131,708.82,707.49,1.4126895]
[1736988128105,3.07274545,708.53,707.49,1.4126895]
[1736988128306,1.87351997,708.52,707.49,1.4126895]
[1736988128606,1.87351997,708.51,707.49,1.4126895]
[1736988128803,1.87351997,708.5,707.49,1.4126895]
[1736988129010,1.87351997,708.49,707.49,1.4126895]
[1736988129202,1.87351997,708.48,707.49,1.4126895]
[1736988129504,1.12400404,708.47,707.49,1.4126895]
[1736988129703,1.03643131,708.83,707.49,1.4126895]
[1736988129909,3.33101822,708.82,707.49,1.4126895]
[1736988130109,3.61318128,708.81,707.49,1.4126895]
[1736988130309,3.61318526,708.8,707.49,1.4126895]
[1736988130507,3.33101822,708.79,707.49,1.4126895]
[1736988130708,3.61319322,708.78,707.49,1.4126895]
[1736988131004,3.33101822,708.77,707.49,1.4126895]
[1736988131207,3.33101822,708.76,707.49,1.4126895]
[1736988131403,3.33101822,708.75,707.49,1.4126895]
[1736988131603,3.33101822,708.74,707.49,1.4126895]
[1736988131802,3.33069687,708.73,707.49,1.4126895]
[1736988132010,3.33070747,708.72,707.49,1.4126895]
[1736988132207,3.0713079,708.71,707.49,1.4126895]
[1736988132406,3.0713079,708.7,707.49,2.5206895]
[1736988132606,3.0713079,708.69,707.49,2.5206895]
[1736988132808,3.0713079,708.68,707.49,2.5206895]
[1736988133008,3.0713079,708.67,707.49,2.5206895]
[1736988133208,1.1232751,708.66,707.49,2.5206895]
[1736988133409,3.07036441,708.65,707.49,2.5206895]
[1736988133711,3.07036441,708.64,707.49,2.5206895]
[1736988133905,3.07036441,708.63,707.49,2.5206895]
[1736988134106,3.07036441,708.62,707.49,2.5206895]
[1736988134307,3.07036441,708.61,707.49,2.5206895]
[1736988134510,3.07036441,708.6,707.49,2.5206895]
[1736988134710,3.07036441,708.59,707.49,2.5206895]
[1736988134911,3.07036441,708.58,707.49,2.5206895]
[1736988135112,1.94708931,708.57,707.49,2.5206895]
[1736988135312,3.06980005,708.56,707.49,4.8266895]
[1736988135512,3.06980005,708.55,707.49,4.8266895]
[1736988135807,3.06980005,708.54,707.49,4.8266895]
[1736988136013,3.06980005,708.53,707.49,4.8266895]
[1736988136212,3.06980005,708.52,707.49,4.8266895]
[1736988136512,3.06980005,708.51,707.49,4.8266895]
[1736988136714,3.06980005,708.5,707.49,4.8266895]
[1736988136915,3.06980005,708.49,707.49,4.8266895]
[1736988137110,3.06980005,708.48,707.49,4.8266895]
[1736988137310,3.06980005,708.47,707.49,4.8266895]
[1736988137509,3.06980005,708.46,707.49,4.8266895]
[1736988137714,3.06980005,708.45,707.49,4.8266895]
[1736988137910,3.06980005,708.44,707.49,4.8266895]
[1736988138111,3.06980005,708.43,707.49,4.8266895]
[1736988138316,3.06980005,708.42,707.49,4.8266895]
[1736988138511,1.87159124,708.41,707.49,4.8266895]
[1736988138710,1.87159124,708.4,707.49,4.8266895]
[1736988138914,1.87052611,708.39,707.49,4.8266895]
[1736988139119,1.87052611,708.38,707.49,4.8266895]
[1736988139319,1.87052611,708.37,707.49,4.8266895]
[1736988139519,1.87032061,708.36,707.49,4.8266895]
[1736988139722,1.87032061,708.35,707.49,4.8266895]
[1736988140022,1.87032061,708.34,707.49,4.8266895]
[1736988140215,1.87017792,708.33,707.49,4.8266895]
[1736988140520,1.12271074,708.32,707.49,4.8266895]
[1736988140716,0.282175,708.78,707.49,4.8266895]
[1736988140917,0.25946516,708.77,707.49,4.8266895]
[1736988141114,3.34632964,708.76,707.49,4.8266895]
[1736988141420,3.32361184,708.75,707.49,4.8266895]
[1736988141621,3.32361184,708.74,707.49,4.8266895]
[1736988141821,0.28218296,708.76,707.49,4.8266895]
[1736988141822,3.32361184,708.73,707.49,4.8266895]
[1736988142022,3.6058073,708.72,707.49,4.8266895]
[1736988142219,3.32360841,708.71,707.49,5.9566895]
[1736988142424,3.60581526,708.7,707.49,5.9566895]
[1736988142621,3.32360841,708.69,707.49,5.9566895]
[1736988142820,3.6044398,708.68,707.49,5.9566895]
[1736988143019,3.32222498,708.67,707.49,5.9566895]
[1736988143221,3.32222498,708.66,707.49,5.9566895]
[1736988143526,3.32222498,708.65,707.49,5.674]
[1736988143825,3.32222498,708.64,707.49,5.674]
[1736988144126,3.32154669,708.63,707.49,5.674]
[1736988144324,3.6037854,708.62,707.49,5.674]
[1736988144525,3.60378939,708.61,707.49,5.674]
[1736988144719,3.32154669,708.6,707.49,5.674]
[1736988144918,3.60379735,708.59,707.49,5.674]
[1736988145119,3.32154669,708.58,707.49,5.674]
[1736988145324,2.48235134,708.57,707.49,5.674]
[1736988145519,3.31935117,708.56,707.49,5.674]
[1736988145727,3.60161777,708.55,707.49,5.674]
[1736988145927,3.60162175,708.54,707.49,5.674]
[1736988146128,3.31935117,708.53,707.49,5.674]
[1736988146323,3.31935117,708.52,707.49,5.674]
[1736988146525,3.31935117,708.51,707.49,5.674]
[1736988146723,0.28227456,708.53,707.49,5.674]
[1736988146931,3.31860732,708.52,707.49,5.674]
[1736988147229,3.31860732,708.51,707.49,5.674]
[1736988147428,3.31860732,708.5,707.49,5.674]
[1736988147628,3.31860732,708.49,707.49,5.674]
[1736988147828,3.31860732,708.48,707.49,5.674]
[1736988148024,0.28227456,708.53,707.49,5.674]
[1736988148025,3.31860732,708.47,707.49,5.674]
[1736988148229,3.31860732,708.46,707.49,5.674]
[1736988148428,3.31860732,708.45,707.49,5.674]
[1736988148630,3.31860732,708.44,707.49,5.674]
[1736988148830,0.28227456,708.53,707.49,5.674]
[1736988148831,3.31867759,708.43,707.49,5.674]
[1736988149129,3.31867759,708.42,707.49,5.674]
[1736988149330,3.60099997,708.41,707.49,5.674]
[1736988149529,3.57824448,708.4,707.49,5.674]
[1736988149725,3.31867663,708.39,707.49,5.674]
[1736988149925,3.31867663,708.38,707.49,5.674]
[1736988150123,3.31867663,708.37,707.49,5.674]
[1736988150326,3.31867197,708.36,707.49,5.674]
[1736988150527,2.19652043,708.35,707.49,5.674]
[1736988150724,3.05408979,708.34,707.49,5.674]
[1736988150926,3.05408979,708.33,707.49,5.674]
[1736988151127,3.05408979,708.32,707.49,5.674]
[1736988151329,3.05408979,708.31,707.49,5.674]
[1736988151529,3.05408979,708.3,707.49,5.674]
[1736988151722,3.05408979,708.29,707.49,5.674]
[1736988151926,3.05408979,708.28,707.49,5.674]
[1736988152127,3.05408979,708.27,707.49,5.674]
[1736988152329,3.05408979,708.26,707.49,5.674]
[1736988152524,3.05308546,708.25,707.49,5.674]
[1736988152725,3.05308546,708.24,707.49,5.674]
[1736988152925,3.05308546,708.23,707.49,5.674]
[1736988153132,3.05271623,708.22,707.49,5.674]
[1736988153328,3.05271623,708.21,707.49,5.674]
[1736988153528,3.05271623,708.2,707.49,5.674]
[1736988153825,3.05271623,708.19,707.49,5.674]
[1736988154031,1.86128077,708.18,707.49,5.674]
[1736988154231,1.86128077,708.17,707.49,5.674]
[1736988154425,1.85991513,708.16,707.49,5.674]
[1736988154730,1.85991513,708.15,707.49,5.674]
[1736988155024,1.85991513,708.14,707.49,5.674]
[1736988155224,1.11581453,708.13,707.49,5.674]
[1736988155427,1.11581453,708.12,707.49,5.674]
[1736988155630,1.11581453,708.11,707.49,5.674]
[1736988155830,0.25956785,708.4,707.49,5.674]
[1736988156036,2.11928024,708.39,707.49,5.674]
[1736988156231,3.30971532,708.38,707.49,5.674]
[1736988156433,3.30971532,708.37,707.49,5.674]
[1736988156628,3.59205763,708.36,707.49,5.674]
[1736988156826,3.59206161,708.35,707.49,5.674]
[1736988157031,3.5920656,708.34,707.49,5.674]
[1736988157331,3.05015432,708.33,707.49,5.674]
[1736988157529,3.04956078,708.32,707.49,5.674]
[1736988157726,3.04956078,708.31,707.49,5.674]
[1736988157927,3.04956078,708.3,707.49,5.674]
[1736988158130,3.04956078,708.29,707.49,5.674]
[1736988158331,3.04877839,708.28,707.49,5.674]
[1736988158529,3.04877839,708.27,707.49,5.674]
[1736988158733,3.04877839,708.26,707.49,5.674]
[1736988158932,3.04877839,708.25,707.49,5.674]
[1736988159130,3.04877839,708.24,707.49,5.674]
[1736988159334,3.04877839,708.23,707.49,5.674]
[1736988159536,3.30838919,708.22,707.49,5.674]
[1736988159734,3.04877839,708.21,707.49,5.674]
[1736988159935,0.28235028,708.34,707.49,5.674]
[1736988159936,3.04877839,708.2,707.49,5.674]
[1736988160136,3.04826664,708.19,707.49,5.674]
[1736988160434,3.04826664,708.18,707.49,5.674]
[1736988160635,3.04826664,708.17,707.49,5.674]
[1736988160830,3.04672734,708.16,707.49,5.674]
[1736988161037,3.04672734,708.15,707.49,5.674]
[1736988161237,3.04672734,708.14,707.49,5.674]
[1736988161437,3.04672734,708.13,707.49,5.674]
[1736988161638,3.04672734,708.12,707.49,5.674]
[1736988161840,3.04642061,708.11,707.49,5.674]
[1736988162044,1.85777549,708.1,707.49,5.674]
[1736988162240,1.8571478,708.09,707.49,5.674]
[1736988162436,1.8571478,708.08,707.49,5.674]
[1736988162636,1.8571478,708.07,707.49,5.674]
[1736988162836,1.8571478,708.06,707.49,5.674]
[1736988163043,1.8571478,708.05,707.49,5.674]
[1736988163240,1.8571478,708.04,707.49,5.674]
[1736988163435,1.8571478,708.03,707.49,5.674]
[1736988163640,1.8571478,708.02,707.49,5.674]
[1736988163836,1.11394795,708.01,707.49,5.674]
[1736988164043,0.28235028,708.34,707.49,5.674]
[1736988164243,3.30450515,708.33,707.49,5.674]
[1736988164443,3.30450515,708.32,707.49,5.674]
[1736988164639,3.30450515,708.31,707.49,5.674]
[1736988164843,3.04490197,708.3,707.49,5.674]
[1736988165043,3.04490197,708.29,707.49,5.674]
[1736988165241,3.04490197,708.28,707.49,5.674]
[1736988165543,3.04490197,708.27,707.49,5.674]
[1736988165743,3.04490197,708.26,707.49,5.674]
[1736988166045,3.04473889,708.25,707.49,5.674]
[1736988166343,3.04473889,708.24,707.49,5.674]
[1736988166543,3.04473889,708.23,707.49,5.674]
[1736988166739,3.04473889,708.22,707.49,5.674]
[1736988166945,3.04473889,708.21,707.49,5.674]
[1736988167137,3.04473889,708.2,707.49,5.674]
[1736988167343,3.04473889,708.19,707.49,5.674]
[1736988167545,3.04473889,708.18,707.49,5.674]
[1736988167844,3.04450425,708.17,707.49,5.674]
[1736988168045,3.04450425,708.16,707.49,5.674]
[1736988168242,3.04450425,708.15,707.49,5.674]
[1736988168445,3.04359241,708.14,707.49,5.674]
[1736988168639,1.85575645,708.13,707.49,5.674]
[1736988168840,1.85575645,708.12,707.49,5.674]
[1736988169041,1.85575645,708.11,707.49,5.674]
[1736988169242,1.85575645,708.1,707.49,5.674]
[1736988169446,1.85575645,708.09,707.49,5.674]
[1736988169646,1.85575645,708.08,707.49,5.674]
[1736988169944,1.11320476,708.07,707.49,5.674]
[1736988170145,1.85555242,708.06,707.49,5.674]
[1736988170343,1.03643131,708.33,707.49,5.674]
[1736988170548,3.30324802,708.32,707.49,5.674]
[1736988170743,3.30324802,708.31,707.49,5.674]
[1736988171045,3.30324802,708.3,707.49,5.674]
[1736988171246,3.30324802,708.29,707.49,5.674]
[1736988171443,3.30323941,708.28,707.49,5.674]
[1736988171643,1.31878159,708.34,707.49,5.674]
[1736988171644,1.03643131,708.22,707.49,5.674]
[1736988171843,3.30323941,708.21,707.49,5.674]
[1736988172048,3.30323941,708.2,707.49,5.674]
[1736988172347,2.11533804,708.19,707.49,5.674]
[1736988172546,2.11533804,708.18,707.49,5.674]
[1736988172747,2.11533804,708.17,707.49,5.674]
[1736988172947,1.03643131,708.24,707.49,5.674]
[1736988172948,3.30356234,708.16,707.49,5.674]
[1736988173151,2.11533804,708.15,707.49,5.674]
[1736988173344,2.11533804,708.14,707.49,5.674]
[1736988173542,2.11533804,708.13,707.49,5.674]
[1736988173749,2.11533804,708.12,707.49,5.674]
[1736988173946,1.85575198,708.11,707.49,5.674]
[1736988174150,1.85575198,708.1,707.49,5.674]
[1736988174351,1.85575198,708.09,707.49,5.674]
[1736988174654,1.85609971,708.08,707.49,5.674]
[1736988174848,1.11331362,708.07,707.49,5.674]
[1736988175048,1.11378404,708.06,707.49,5.674]
[1736988175246,1.03643131,708.19,707.49,5.674]
[1736988175450,3.30563769,708.18,707.49,5.674]
[1736988175645,3.30563769,708.17,707.49,5.674]
[1736988175846,3.30563769,708.16,707.49,5.674]
[1736988176047,3.30563769,708.15,707.49,5.674]
[1736988176355,3.30574074,708.14,707.49,5.674]
[1736988176652,3.04688152,708.13,707.49,5.674]
[1736988176856,1.85727948,708.12,707.49,5.674]
[1736988177051,1.85727948,708.11,707.49,5.674]
[1736988177251,1.85727948,708.1,707.49,5.674]
[1736988177452,1.85727948,708.09,707.49,5.674]
[1736988177651,1.85727948,708.08,707.49,5.674]
[1736988177953,1.11422958,708.07,707.49,5.674]
[1736988178151,1.11422958,708.06,707.49,5.674]
[1736988178351,1.11612091,708.05,707.49,5.674]
[1736988178551,1.11612091,708.04,707.49,5.674]
[1736988178749,1.03643131,708.16,707.49,5.674]
[1736988178950,1.03643131,708.13,707.49,5.674]
[1736988179150,1.8604536,708.12,707.49,5.674]
[1736988179353,1.8604536,708.11,707.49,5.674]
[1736988179554,1.8604536,708.1,707.49,5.674]
[1736988179853,1.8604536,708.09,707.49,5.674]
[1736988180054,0.28235028,708.34,707.49,5.674]
[1736988180055,1.8604536,708.08,707.49,5.674]
[1736988180247,1.8604536,708.07,707.49,5.674]
[1736988180450,1.8604536,708.06,707.49,5.674]
[1736988180751,1.11613475,708.05,707.49,7.226]
[1736988180951,1.11613475,708.04,707.49,7.226]
[1736988181151,1.86082078,708.03,707.49,7.226]
[1736988181351,1.86082078,708.02,707.49,7.226]
[1736988181552,1.03643131,708.12,707.49,7.226]
[1736988181553,1.86082078,708.01,707.49,7.226]
[1736988181849,1.86082078,708.0,707.49,7.226]
[1736988182053,1.86082078,707.99,707.49,7.226]
[1736988182253,0.28235028,708.34,707.49,7.226]
[1736988182254,1.86082078,707.98,707.49,7.226]
[1736988182452,1.86082078,707.97,707.49,7.226]
[1736988182748,1.11644441,707.96,707.49,7.226]
[1736988182954,1.11644382,707.95,707.49,7.226]
[1736988183148,1.11634356,707.94,707.49,7.226]
[1736988183350,1.11660154,707.93,707.49,7.226]
[1736988183552,1.86123401,707.92,707.49,7.226]
[1736988183753,1.86123401,707.91,707.49,7.226]
[1736988183957,1.86123401,707.9,707.49,7.226]
[1736988184248,1.03643131,708.3,707.49,7.226]
[1736988184453,3.33612826,708.29,707.49,7.226]
[1736988184653,3.05375805,708.28,707.49,7.226]
[1736988184853,3.05375805,708.27,707.49,7.226]
[1736988185057,3.31335647,708.26,707.49,7.226]
[1736988185252,0.28237021,708.29,707.49,7.226]
[1736988185253,3.31335647,708.25,707.49,7.226]
[1736988185453,3.05375805,708.24,707.49,7.226]
[1736988185648,3.05375805,708.23,707.49,7.226]
[1736988185855,3.05375805,708.22,707.49,7.226]
[1736988186056,1.0378424,708.12,707.49,7.226]
[1736988186655,1.11798743,708.11,707.49,7.226]
[1736988186951,1.86351274,708.1,707.49,7.226]
[1736988187251,3.05647469,708.09,707.49,7.226]
[1736988187456,3.3160902,708.08,707.49,7.226]
[1736988187651,3.05647469,708.07,707.49,7.226]
[1736988187957,3.05647469,708.06,707.49,7.226]
[1736988188154,3.05647469,708.05,707.49,7.226]
[1736988188351,0.28237021,708.29,707.49,7.226]
[1736988188352,1.0378424,708.0,707.49,7.226]
[1736988188556,3.05615511,707.99,707.49,7.226]
[1736988188757,3.05615511,707.98,707.49,7.226]
[1736988189053,3.05615511,707.97,707.49,7.226]
[1736988189259,0.28237021,708.29,707.49,7.226]
[1736988189260,3.05615511,707.96,707.49,7.226]
[1736988189458,3.05615511,707.95,707.49,7.226]
[1736988189657,3.05615511,707.94,707.49,7.226]
[1736988189860,3.05615511,707.93,707.49,7.226]
[1736988190060,3.05615511,707.92,707.49,7.226]
[1736988190263,3.05615511,707.91,707.49,7.226]
[1736988190559,3.05725173,707.9,707.49,7.226]
[1736988190759,3.05725173,707.89,707.49,7.226]
[1736988190960,1.86445829,707.88,707.49,7.226]
[1736988191256,1.0378424,708.03,707.49,7.226]
[1736988191562,1.86628763,708.02,707.49,7.226]
[1736988191757,1.0378424,708.03,707.49,7.226]
[1736988192162,1.8667505,708.02,707.49,7.226]
[1736988192362,1.12023473,708.01,707.49,7.226]
[1736988192565,0.28237021,708.29,707.49,7.226]
[1736988192763,3.06261937,708.28,707.49,7.226]
[1736988193062,3.06261937,708.27,707.49,7.226]
[1736988193263,3.06261937,708.26,707.49,7.226]
[1736988193463,3.06261937,708.25,707.49,7.226]
[1736988193663,3.06261937,708.24,707.49,7.226]
[1736988193864,3.06261937,708.23,707.49,7.226]
[1736988194063,3.06261937,708.22,707.49,7.226]
[1736988194365,3.06261937,708.21,707.49,7.226]
[1736988194558,3.06261937,708.2,707.49,7.226]
[1736988194762,3.06261937,708.19,707.49,7.226]
[1736988194959,0.28237021,708.29,707.49,7.226]
[1736988194960,1.1202539,708.18,707.49,7.226]
[1736988195161,3.0634352,708.17,707.49,7.226]
[1736988195366,3.0634352,708.16,707.49,7.226]
[1736988195566,3.0634352,708.15,707.49,7.226]
[1736988195768,3.0634352,708.14,707.49,7.226]
[1736988195965,3.0634352,708.13,707.49,7.226]
[1736988196269,3.0634352,708.12,707.49,7.226]
[1736988196467,1.1202539,708.11,707.49,7.226]
[1736988196767,3.06428236,708.1,707.49,7.226]
[1736988196967,3.06428236,708.09,707.49,7.226]
[1736988197168,3.06428236,708.08,707.49,7.226]
[1736988197467,3.06428236,708.07,707.49,7.226]
[1736988197768,3.06428236,708.06,707.49,7.226]
[1736988198069,3.06428236,708.05,707.49,7.226]
[1736988198268,3.06428236,708.04,707.49,7.226]
[1736988198470,3.06428236,708.03,707.49,7.226]
[1736988198668,3.06428236,708.02,707.49,7.226]
[1736988198862,3.06428236,708.01,707.49,7.226]
[1736988199063,3.06526123,708.0,707.49,7.226]
[1736988199270,3.06526123,707.99,707.49,7.226]
[1736988199469,1.86795715,707.98,707.49,7.226]
[1736988199670,1.86795715,707.97,707.49,7.226]
[1736988199873,1.0378424,708.26,707.49,7.226]
[1736988200170,3.06912217,708.25,707.49,7.226]
[1736988200363,3.06912217,708.24,707.49,7.226]
[1736988200570,0.28237021,708.29,707.49,7.226]
[1736988200571,3.06912217,708.23,707.49,7.226]
[1736988200769,3.06912217,708.22,707.49,7.226]
[1736988200973,3.06912217,708.21,707.49,7.226]
[1736988201173,3.06912217,708.2,707.49,7.226]
[1736988201375,3.06912217,708.19,707.49,7.226]
[1736988201573,3.06912217,708.18,707.49,7.226]
[1736988201775,3.0699442,708.17,707.49,7.226]
[1736988201975,1.87128501,708.16,707.49,7.226]
[1736988202274,1.87237855,708.15,707.49,7.226]
[1736988202472,1.87237855,708.14,707.49,7.226]
[1736988202670,1.87237855,708.13,707.49,7.226]
[1736988202872,1.87237855,708.12,707.49,7.226]
[1736988203073,1.87237855,708.11,707.49,7.226]
[1736988203269,1.87237855,708.1,707.49,7.226]
[1736988203471,1.87237855,708.09,707.49,7.226]
[1736988203774,1.87237855,708.08,707.49,7.226]
[1736988203974,1.87237855,708.07,707.49,7.226]
[1736988204175,1.87237855,708.06,707.49,7.226]
[1736988204374,1.12403534,708.05,707.49,7.226]
[1736988204575,1.87361649,708.04,707.49,7.226]
[1736988204775,0.28237021,708.29,707.49,7.226]
[1736988204776,1.87361649,708.03,707.49,7.226]
[1736988204978,1.87361649,708.02,707.49,7.226]
[1736988205173,1.87361649,708.01,707.49,7.226]
[1736988205377,1.87361649,708.0,707.49,7.226]
[1736988205575,1.87373027,707.99,707.49,7.226]
[1736988205874,0.28237021,708.29,707.49,7.226]
[1736988205875,1.87374869,707.98,707.49,7.226]
[1736988206080,1.87374869,707.97,707.49,7.226]
[1736988206378,1.87374869,707.96,707.49,7.226]
[1736988206571,1.87374869,707.95,707.49,7.226]
[1736988206775,0.28237021,708.29,707.49,7.226]
[1736988206776,1.87374869,707.94,707.49,7.226]
[1736988206976,1.87374869,707.93,707.49,7.226]
[1736988207174,1.87374869,707.92,707.49,7.226]
[1736988207379,3.07352532,707.91,707.49,7.226]
[1736988207577,1.87374869,707.9,707.49,7.226]
[1736988207879,1.87374869,707.89,707.49,7.226]
[1736988208080,3.07334076,707.88,707.49,7.226]
[1736988208374,3.07294459,707.87,707.49,7.226]
[1736988208574,3.07294459,707.86,707.49,7.226]
[1736988208781,3.07294459,707.85,707.49,7.226]
[1736988208978,3.07294459,707.84,707.49,7.226]
[1736988209179,1.0378424,708.13,707.49,7.226]
[1736988209474,0.54209044,708.12,707.49,7.226]
[1736988209683,0.54209443,708.11,707.49,7.226]
[1736988209878,0.25965244,708.1,707.49,7.226]
[1736988210081,3.07239132,708.09,707.49,7.226]
[1736988210274,2.58258866,708.08,707.49,7.226]
[1736988210478,3.33204376,708.07,707.49,7.226]
[1736988210681,3.07239132,708.06,707.49,7.226]
[1736988210880,0.28244199,708.11,707.49,7.226]
[1736988210881,3.07239132,708.05,707.49,7.226]
[1736988211081,3.07239132,708.04,707.49,7.226]
[1736988211281,3.07239132,708.03,707.49,7.226]
[1736988211477,3.07239132,708.02,707.49,7.226]
[1736988211681,3.07239132,708.01,707.49,7.226]
[1736988211877,3.07239132,708.0,707.49,7.226]
[1736988212081,3.07176964,707.99,707.49,7.226]
[1736988212282,3.07176964,707.98,707.49,7.226]
[1736988212475,3.07176964,707.97,707.49,7.226]
[1736988212677,3.07176964,707.96,707.49,7.226]
[1736988212881,3.07176964,707.95,707.49,7.226]
[1736988213183,3.07176964,707.94,707.49,7.226]
[1736988213379,3.07176964,707.93,707.49,7.226]
[1736988213585,3.07176964,707.92,707.49,7.226]
[1736988213781,3.07176964,707.91,707.49,7.226]
[1736988214087,3.07176964,707.9,707.49,7.226]
[1736988214287,3.07176964,707.89,707.49,7.226]
[1736988214485,3.07176964,707.88,707.49,7.226]
[1736988214687,3.07176964,707.87,707.49,7.226]
[1736988214885,0.28244199,708.11,707.49,7.226]
[1736988214886,3.07176964,707.86,707.49,7.226]
[1736988215084,0.28244199,708.11,707.49,7.226]
[1736988215085,3.07176964,707.85,707.49,7.226]
[1736988215285,3.07176964,707.84,707.49,7.226]
[1736988215485,3.07176964,707.83,707.49,7.226]
[1736988215686,3.07176964,707.82,707.49,7.226]
[1736988215885,1.87302405,707.81,707.49,7.226]
[1736988216084,1.87302405,707.8,707.49,7.226]
[1736988216286,1.87302405,707.79,707.49,7.226]
[1736988216485,1.87302405,707.78,707.49,7.226]
[1736988216685,1.87302405,707.77,707.49,7.226]
[1736988216987,1.87302405,707.76,707.49,7.226]
[1736988217180,0.28244199,708.11,707.49,7.226]
[1736988217181,1.87302405,707.75,707.49,7.226]
[1736988217484,1.87302405,707.74,707.49,7.226]
[1736988217681,1.87302405,707.73,707.49,7.226]
[1736988217882,1.87171503,707.72,707.49,7.226]
[1736988218087,1.12249904,707.71,707.49,7.226]
[1736988218281,0.28244199,708.11,707.49,7.226]
[1736988218482,3.06885459,708.1,707.49,7.226]
[1736988218681,3.06885459,708.09,707.49,7.226]
[1736988218884,3.06885459,708.08,707.49,7.226]
[1736988219082,3.06885459,708.07,707.49,7.226]
[1736988219282,3.06885459,708.06,707.49,7.226]
[1736988219485,3.06885459,708.05,707.49,7.226]
[1736988219686,3.06885459,708.04,707.49,7.226]
[1736988219888,3.06885459,708.03,707.49,7.226]
[1736988220087,1.87110805,708.02,707.49,7.226]
[1736988220288,1.87110805,708.01,707.49,7.226]
[1736988220485,1.87110805,708.0,707.49,7.226]
[1736988220683,1.87110805,707.99,707.49,7.226]
[1736988220891,0.28244199,708.11,707.49,7.226]
[1736988221087,3.07029965,708.1,707.49,7.226]
[1736988221287,3.07029965,708.09,707.49,7.226]
[1736988221483,1.87200372,708.08,707.49,7.226]
[1736988221689,1.87200372,708.07,707.49,7.226]
[1736988221887,1.12312364,708.06,707.49,7.226]
[1736988222088,1.0378424,708.5,707.49,7.226]
[1736988222283,3.32981012,708.49,707.49,7.226]
[1736988222590,3.32981012,708.48,707.49,7.226]
[1736988222789,3.32981012,708.47,707.49,7.226]
[1736988223089,0.2822905,708.49,707.49,7.226]
[1736988223090,3.07030118,708.46,707.49,7.226]
[1736988223288,3.07030118,708.45,707.49,7.226]
[1736988223490,3.07030118,708.44,707.49,7.226]
[1736988223688,3.07030118,708.43,707.49,7.226]
[1736988223883,3.07030118,708.42,707.49,7.226]
[1736988224088,3.07030118,708.41,707.49,7.226]
[1736988224284,3.07030118,708.4,707.49,7.226]
[1736988224483,3.07030118,708.39,707.49,7.226]
[1736988224788,3.07030118,708.38,707.49,7.226]
[1736988224985,3.07030118,708.37,707.49,7.226]
[1736988225188,3.07030118,708.36,707.49,7.226]
[1736988225389,3.07030118,708.35,707.49,7.226]
[1736988225688,3.07030118,708.34,707.49,7.226]
[1736988225883,3.07030118,708.33,707.49,7.226]
[1736988226089,3.07030118,708.32,707.49,7.226]
[1736988226284,3.06890242,708.31,707.49,7.226]
[1736988226590,3.06890242,708.3,707.49,7.226]
[1736988226790,3.06890242,708.29,707.49,7.226]
[1736988226990,3.06890242,708.28,707.49,7.226]
[1736988227289,3.06890242,708.27,707.49,7.226]
[1736988227486,3.06890242,708.26,707.49,7.226]
[1736988227687,3.06890242,708.25,707.49,7.226]
[1736988227887,3.06890242,708.24,707.49,7.226]
[1736988228087,1.87156159,708.23,707.49,7.226]
[1736988228287,1.87156159,708.22,707.49,7.226]
[1736988228484,1.87156159,708.21,707.49,7.226]
[1736988228790,1.8712348,708.2,707.49,7.226]
[1736988228985,1.12322357,708.19,707.49,7.226]
[1736988229291,1.12155036,708.18,707.49,7.226]
[1736988229484,0.2822905,708.49,707.49,7.226]
[1736988229683,3.32571105,708.48,707.49,7.226]
[1736988229887,3.32571105,708.47,707.49,7.226]
[1736988230089,3.32571105,708.46,707.49,7.226]